[Event "Titled Tuesday Blitz May 03 Late 2022"]
[White "Ambartsumova, Karina"]
[Black "Tisaj, Domen"]
[WhiteFideId "4166299"]
[BlackFideId "14628708"]
[WhiteElo "2262"]
[BlackElo "2333"]
[Result "0-1"]
[Round "10"]
[TimeControl "180+1"]
[Date "2022.05.03"]
[WhiteClock "0:00:15"]
[BlackClock "0:00:01"]

1. Nf3 {[%clk 0:02:59]}  Nf6 {[%clk 0:02:55]} 2. c4 {[%clk 0:02:58]}  d6 {[%clk 0:02:52]} 3. d4 {[%clk 0:02:58]}  Nbd7 {[%clk 0:02:52]} 4. g3 {[%clk 0:02:58]}  g6 {[%clk 0:02:50]} 5. Nc3 {[%clk 0:02:57]}  e5 {[%clk 0:02:49]} 6. Bg2 {[%clk 0:02:57]}  exd4 {[%clk 0:02:48]} 7. Nxd4 {[%clk 0:02:57]}  Bg7 {[%clk 0:02:48]} 8. O-O {[%clk 0:02:57]}  O-O {[%clk 0:02:49]} 9. b3 {[%clk 0:02:54]}  Re8 {[%clk 0:02:48]} 10. Bb2 {[%clk 0:02:54]}  Nc5 {[%clk 0:02:48]} 11. Qc2 {[%clk 0:02:45]}  h5 {[%clk 0:02:38]} 12. Rad1 {[%clk 0:02:32]}  a6 {[%clk 0:02:35]} 13. b4 {[%clk 0:02:10]}  Ne6 {[%clk 0:02:25]} 14. Nf3 {[%clk 0:02:09]}  a5 {[%clk 0:01:51]} 15. a3 {[%clk 0:02:06]}  axb4 {[%clk 0:01:28]} 16. axb4 {[%clk 0:02:07]}  Qe7 {[%clk 0:01:27]} 17. Rfe1 {[%clk 0:01:55]}  Bd7 {[%clk 0:01:21]} 18. Nd5 {[%clk 0:01:41]}  Nxd5 {[%clk 0:01:20]} 19. cxd5 {[%clk 0:01:42]}  Ra2 {[%clk 0:01:18]} 20. dxe6 {[%clk 0:01:29]}  Rxb2 {[%clk 0:01:16]} 21. Qxc7 {[%clk 0:01:24]}  Bxe6 {[%clk 0:01:12]} 22. Qxd6 {[%clk 0:00:51]}  Qxd6 {[%clk 0:01:08]} 23. Rxd6 {[%clk 0:00:52]}  Rxb4 {[%clk 0:01:09]} 24. Ng5 {[%clk 0:00:49]}  Bc4 {[%clk 0:01:04]} 25. e3 {[%clk 0:00:45]}  b5 {[%clk 0:00:44]} 26. Rb6 {[%clk 0:00:35]}  Rb2 {[%clk 0:00:38]} 27. Rd1 {[%clk 0:00:31]}  Bh6 {[%clk 0:00:20]} 28. Ne4 {[%clk 0:00:30]}  Bg7 {[%clk 0:00:19]} 29. Nd6 {[%clk 0:00:26]}  Rd8 {[%clk 0:00:18]} 30. Rc1 {[%clk 0:00:26]}  Be6 {[%clk 0:00:10]} 31. Nxb5 {[%clk 0:00:18]}  Rdd2 {[%clk 0:00:10]} 32. Rb8+ {[%clk 0:00:08]}  Kh7 {[%clk 0:00:10]} 33. Be4 {[%clk 0:00:06]}  Rxf2 {[%clk 0:00:08]} 34. Rb1 {[%clk 0:00:04]}  Rxh2 {[%clk 0:00:07]} 35. Rxb2 {[%clk 0:00:03]}  Rxb2 {[%clk 0:00:08]} 36. Rb7 {[%clk 0:00:04]}  Bh6 {[%clk 0:00:07]} 37. Nd6 {[%clk 0:00:04]}  Bxe3+ {[%clk 0:00:07]} 38. Kf1 {[%clk 0:00:03]}  Bc4+ {[%clk 0:00:03]} 39. Ke1 {[%clk 0:00:02]}  Rxb7 {[%clk 0:00:03]} 40. Bxb7 {[%clk 0:00:01]}  Be6 {[%clk 0:00:03]} 41. Be4 {[%clk 0:00:01]}  Bg5 {[%clk 0:00:03]} 42. Ke2 {[%clk 0:00:02]}  Be7 {[%clk 0:00:03]} 43. Kf1 {[%clk 0:00:03]}  Bxd6 {[%clk 0:00:04]} 44. Kg2 {[%clk 0:00:03]}  Kh6 {[%clk 0:00:04]} 45. Bf3 {[%clk 0:00:04]}  Kg5 {[%clk 0:00:04]} 46. Be4 {[%clk 0:00:04]}  Bf5 {[%clk 0:00:04]} 47. Bf3 {[%clk 0:00:04]}  Bg4 {[%clk 0:00:05]} 48. Bd5 {[%clk 0:00:04]}  Kf6 {[%clk 0:00:05]} 49. Be4 {[%clk 0:00:05]}  Bd7 {[%clk 0:00:05]} 50. Bd5 {[%clk 0:00:05]}  Be8 {[%clk 0:00:06]} 51. Bf3 {[%clk 0:00:05]}  Ke5 {[%clk 0:00:06]} 52. Bb7 {[%clk 0:00:05]}  Kd4 {[%clk 0:00:06]} 53. Bf3 {[%clk 0:00:05]}  Kc5 {[%clk 0:00:07]} 54. Be2 {[%clk 0:00:05]}  Bc6+ {[%clk 0:00:07]} 55. Kh3 {[%clk 0:00:06]}  Kd4 {[%clk 0:00:08]} 56. Bd1 {[%clk 0:00:05]}  Bd5 {[%clk 0:00:08]} 57. Be2 {[%clk 0:00:04]}  Ke3 {[%clk 0:00:08]} 58. Bd1 {[%clk 0:00:04]}  Be6+ {[%clk 0:00:08]} 59. Kg2 {[%clk 0:00:04]}  Kd2 {[%clk 0:00:08]} 60. Bf3 {[%clk 0:00:05]}  Be7 {[%clk 0:00:06]} 61. Bc6 {[%clk 0:00:05]}  h4 {[%clk 0:00:06]} 62. gxh4 {[%clk 0:00:04]}  Bxh4 {[%clk 0:00:06]} 63. Be8 {[%clk 0:00:04]}  Be7 {[%clk 0:00:06]} 64. Bc6 {[%clk 0:00:04]}  Ke3 {[%clk 0:00:06]} 65. Bb7 {[%clk 0:00:04]}  Kf4 {[%clk 0:00:06]} 66. Kh2 {[%clk 0:00:04]}  Ke5 {[%clk 0:00:06]} 67. Kg3 {[%clk 0:00:03]}  Kd6 {[%clk 0:00:07]} 68. Bf3 {[%clk 0:00:03]}  Kc7 {[%clk 0:00:07]} 69. Be2 {[%clk 0:00:03]}  Bd6+ {[%clk 0:00:07]} 70. Kh4 {[%clk 0:00:04]}  Kd8 {[%clk 0:00:08]} 71. Kg5 {[%clk 0:00:04]}  Ke7 {[%clk 0:00:08]} 72. Bd3 {[%clk 0:00:04]}  Kf8 {[%clk 0:00:08]} 73. Bxg6 {[%clk 0:00:05]}  fxg6 {[%clk 0:00:07]} 74. Kxg6 {[%clk 0:00:05]}  Ke7 {[%clk 0:00:06]} 75. Kg5 {[%clk 0:00:06]}  Ba2 {[%clk 0:00:06]} 76. Kg6 {[%clk 0:00:07]}  Ba3 {[%clk 0:00:05]} 77. Kg5 {[%clk 0:00:08]}  Bb2 {[%clk 0:00:05]} 78. Kf5 {[%clk 0:00:08]}  Bb1+ {[%clk 0:00:04]} 79. Kf4 {[%clk 0:00:08]}  Kd6 {[%clk 0:00:04]} 80. Kg5 {[%clk 0:00:08]}  Ke6 {[%clk 0:00:04]} 81. Kf4 {[%clk 0:00:09]}  Bc1+ {[%clk 0:00:05]} 82. Kf3 {[%clk 0:00:09]}  Bh6 {[%clk 0:00:05]} 83. Kg4 {[%clk 0:00:09]}  Bc2 {[%clk 0:00:05]} 84. Kf3 {[%clk 0:00:10]}  Ke5 {[%clk 0:00:05]} 85. Kg4 {[%clk 0:00:11]}  Bd1+ {[%clk 0:00:04]} 86. Kg3 {[%clk 0:00:11]}  Bd2 {[%clk 0:00:04]} 87. Kf2 {[%clk 0:00:11]}  Ke4 {[%clk 0:00:04]} 88. Kg3 {[%clk 0:00:12]}  Be1+ {[%clk 0:00:05]} 89. Kg2 {[%clk 0:00:13]}  Be2 {[%clk 0:00:05]} 90. Kh3 {[%clk 0:00:12]}  Kf4 {[%clk 0:00:04]} 91. Kg2 {[%clk 0:00:13]}  Kg4 {[%clk 0:00:04]} 92. Kh2 {[%clk 0:00:13]}  Bf1 {[%clk 0:00:04]} 93. Kg1 {[%clk 0:00:14]}  Bh3 {[%clk 0:00:04]} 94. Kh2 {[%clk 0:00:14]}  Kh4 {[%clk 0:00:03]} 95. Kg1 {[%clk 0:00:14]}  Kg3 {[%clk 0:00:04]} 96. Kh1 {[%clk 0:00:14]}  Bg2+ {[%clk 0:00:03]} 97. Kg1 {[%clk 0:00:15]}  Bf2# {[%clk 0:00:01]} 0-1


[Site "https://www.chess.com"]

[Event "Titled Tuesday Blitz May 03 Late 2022"]
[White "Bernal Moro, Luis Javier"]
[Black "Omariev, Maksim"]
[WhiteFideId "2200236"]
[BlackFideId "4193423"]
[WhiteElo "2373"]
[BlackElo "2515"]
[Result "1-0"]
[Round "10"]
[TimeControl "180+1"]
[Date "2022.05.03"]
[WhiteClock "0:00:11"]
[BlackClock "0:00:13"]

1. c4 {[%clk 0:02:56]}  h5 {[%clk 0:02:58]} 2. e4 {[%clk 0:02:52]}  h4 {[%clk 0:02:59]} 3. d4 {[%clk 0:02:52]}  c6 {[%clk 0:03:00]} 4. Nc3 {[%clk 0:02:50]}  d6 {[%clk 0:02:58]} 5. f3 {[%clk 0:02:47]}  e5 {[%clk 0:02:58]} 6. Nge2 {[%clk 0:02:46]}  h3 {[%clk 0:02:58]} 7. g4 {[%clk 0:02:45]}  Be7 {[%clk 0:02:53]} 8. Be3 {[%clk 0:02:45]}  Bg5 {[%clk 0:02:50]} 9. Qd2 {[%clk 0:02:42]}  Bxe3 {[%clk 0:02:46]} 10. Qxe3 {[%clk 0:02:43]}  Qh4+ {[%clk 0:02:33]} 11. Ng3 {[%clk 0:02:38]}  Ne7 {[%clk 0:02:26]} 12. O-O-O {[%clk 0:02:33]}  Ng6 {[%clk 0:02:10]} 13. Nf5 {[%clk 0:02:32]}  Bxf5 {[%clk 0:02:10]} 14. exf5 {[%clk 0:02:32]}  Ne7 {[%clk 0:01:59]} 15. dxe5 {[%clk 0:02:30]}  dxe5 {[%clk 0:01:59]} 16. Qxe5 {[%clk 0:02:28]}  Nd7 {[%clk 0:01:59]} 17. Qe3 {[%clk 0:02:08]}  Qh6 {[%clk 0:01:32]} 18. g5 {[%clk 0:01:57]}  Qh4 {[%clk 0:01:33]} 19. Ne4 {[%clk 0:01:48]}  O-O-O {[%clk 0:01:08]} 20. Qxa7 {[%clk 0:01:45]}  Nxf5 {[%clk 0:01:08]} 21. c5 {[%clk 0:01:33]}  Qf4+ {[%clk 0:01:06]} 22. Kb1 {[%clk 0:00:53]}  Qxf3 {[%clk 0:01:06]} 23. Bd3 {[%clk 0:00:46]}  Ne5 {[%clk 0:00:06]} 24. Bc2 {[%clk 0:00:41]}  Rxd1+ {[%clk 0:00:04]} 25. Rxd1 {[%clk 0:00:41]}  Ne3 {[%clk 0:00:02]} 26. Nd6+ {[%clk 0:00:34]}  Kd7 {[%clk 0:00:02]} 27. Qxb7+ {[%clk 0:00:24]}  Ke6 {[%clk 0:00:03]} 28. Bb3+ {[%clk 0:00:23]}  Nd5 {[%clk 0:00:03]} 29. Re1 {[%clk 0:00:15]}  Rc8 {[%clk 0:00:03]} 30. g6 {[%clk 0:00:12]}  Rc7 {[%clk 0:00:03]} 31. Qb8 {[%clk 0:00:12]}  fxg6 {[%clk 0:00:03]} 32. Qe8+ {[%clk 0:00:12]}  Re7 {[%clk 0:00:03]} 33. Rxe5+ {[%clk 0:00:11]}  Kxe5 {[%clk 0:00:03]} 34. Qxe7+ {[%clk 0:00:11]}  Kd4 {[%clk 0:00:04]} 35. Qe1 {[%clk 0:00:10]}  Qd3+ {[%clk 0:00:03]} 36. Ka1 {[%clk 0:00:10]}  Ne3 {[%clk 0:00:04]} 37. Nb7 {[%clk 0:00:08]}  Ke5 {[%clk 0:00:02]} 38. Qg3+ {[%clk 0:00:08]}  Kd4 {[%clk 0:00:02]} 39. Qe1 {[%clk 0:00:07]}  Ke4 {[%clk 0:00:03]} 40. Nd6+ {[%clk 0:00:07]}  Kd4 {[%clk 0:00:02]} 41. Qg1 {[%clk 0:00:06]}  Kxc5 {[%clk 0:00:01]} 42. Nc4 {[%clk 0:00:06]}  Kd4 {[%clk 0:00:01]} 43. Qxe3+ {[%clk 0:00:05]}  Qxe3 {[%clk 0:00:01]} 44. Nxe3 {[%clk 0:00:05]}  Kxe3 {[%clk 0:00:02]} 45. Be6 {[%clk 0:00:06]}  Kf2 {[%clk 0:00:02]} 46. Bxh3 {[%clk 0:00:06]}  Kg1 {[%clk 0:00:03]} 47. a4 {[%clk 0:00:06]}  Kxh2 {[%clk 0:00:03]} 48. Be6 {[%clk 0:00:06]}  Kg3 {[%clk 0:00:04]} 49. a5 {[%clk 0:00:07]}  Kf4 {[%clk 0:00:04]} 50. a6 {[%clk 0:00:07]}  Ke5 {[%clk 0:00:05]} 51. Bc8 {[%clk 0:00:07]}  Kd6 {[%clk 0:00:05]} 52. a7 {[%clk 0:00:07]}  Kc7 {[%clk 0:00:06]} 53. a8=Q {[%clk 0:00:08]}  g5 {[%clk 0:00:07]} 54. Bg4 {[%clk 0:00:07]}  Kd6 {[%clk 0:00:07]} 55. Bf3 {[%clk 0:00:07]}  g4 {[%clk 0:00:07]} 56. Qxc6+ {[%clk 0:00:08]}  Ke5 {[%clk 0:00:08]} 57. Bxg4 {[%clk 0:00:08]}  Kf4 {[%clk 0:00:09]} 58. Qg6 {[%clk 0:00:08]}  Kg3 {[%clk 0:00:09]} 59. Qxg7 {[%clk 0:00:09]}  Kh4 {[%clk 0:00:10]} 60. b4 {[%clk 0:00:09]}  Kg3 {[%clk 0:00:10]} 61. b5 {[%clk 0:00:09]}  Kh4 {[%clk 0:00:11]} 62. b6 {[%clk 0:00:10]}  Kg3 {[%clk 0:00:12]} 63. b7 {[%clk 0:00:10]}  Kh4 {[%clk 0:00:13]} 64. Be6 {[%clk 0:00:10]}  Kh5 {[%clk 0:00:13]} 65. b8=Q {[%clk 0:00:10]}  Kh4 {[%clk 0:00:13]} 66. Qbh8# {[%clk 0:00:11]} 1-0


[Site "https://www.chess.com"]

[Event "Titled Tuesday Blitz May 03 Late 2022"]
[White "Dubov, Daniil"]
[Black "Martinez Alcantara, Jose Eduardo"]
[WhiteFideId "24126055"]
[BlackFideId "3805662"]
[WhiteElo "2791"]
[BlackElo "2690"]
[Result "1/2-1/2"]
[Round "10"]
[TimeControl "180+1"]
[Date "2022.05.03"]
[WhiteClock "0:01:34"]
[BlackClock "0:02:02"]

1. d4 {[%clk 0:03:00]}  Nf6 {[%clk 0:03:00]} 2. Nf3 {[%clk 0:03:01]}  e6 {[%clk 0:03:00]} 3. c4 {[%clk 0:03:01]}  Bb4+ {[%clk 0:03:01]} 4. Nbd2 {[%clk 0:03:00]}  b6 {[%clk 0:03:01]} 5. g3 {[%clk 0:03:00]}  Bb7 {[%clk 0:03:01]} 6. Bg2 {[%clk 0:03:01]}  O-O {[%clk 0:03:01]} 7. O-O {[%clk 0:03:01]}  a5 {[%clk 0:03:02]} 8. Qc2 {[%clk 0:02:58]}  Bxd2 {[%clk 0:02:59]} 9. Qxd2 {[%clk 0:02:57]}  d6 {[%clk 0:02:56]} 10. b3 {[%clk 0:02:55]}  Nbd7 {[%clk 0:02:56]} 11. Bb2 {[%clk 0:02:54]}  Be4 {[%clk 0:02:54]} 12. Rfd1 {[%clk 0:02:48]}  h6 {[%clk 0:02:54]} 13. Qc3 {[%clk 0:02:44]}  c6 {[%clk 0:02:51]} 14. Bf1 {[%clk 0:02:43]}  Qb8 {[%clk 0:02:39]} 15. Nd2 {[%clk 0:02:43]}  Bg6 {[%clk 0:02:39]} 16. Bg2 {[%clk 0:02:43]}  d5 {[%clk 0:02:40]} 17. a4 {[%clk 0:02:36]}  Rc8 {[%clk 0:02:39]} 18. Rac1 {[%clk 0:02:35]}  b5 {[%clk 0:02:28]} 19. axb5 {[%clk 0:02:18]}  cxb5 {[%clk 0:02:29]} 20. c5 {[%clk 0:02:18]}  b4 {[%clk 0:02:29]} 21. Qe3 {[%clk 0:02:17]}  Qb5 {[%clk 0:02:23]} 22. Ra1 {[%clk 0:02:08]}  Nb8 {[%clk 0:02:19]} 23. Ra4 {[%clk 0:02:06]}  Nc6 {[%clk 0:02:18]} 24. Rc1 {[%clk 0:02:05]}  Ng4 {[%clk 0:02:02]} 25. Qf3 {[%clk 0:01:59]}  Nf6 {[%clk 0:02:02]} 26. Qe3 {[%clk 0:01:42]}  Ng4 {[%clk 0:02:02]} 27. Qf3 {[%clk 0:01:33]}  Nf6 {[%clk 0:02:02]} 28. Qe3 {[%clk 0:01:34]} 1/2-1/2


[Site "https://www.chess.com"]

[Event "Titled Tuesday Blitz May 03 Late 2022"]
[White "Guz, Ari"]
[Black "Pakleza, Zbigniew"]
[WhiteFideId "2825759"]
[BlackFideId "1119290"]
[WhiteElo "1913"]
[BlackElo "2467"]
[Result "0-1"]
[Round "10"]
[TimeControl "180+1"]
[Date "2022.05.03"]
[WhiteClock "0:00:14"]
[BlackClock "0:00:05"]

1. Nf3 {[%clk 0:03:00]}  d5 {[%clk 0:02:59]} 2. b3 {[%clk 0:03:00]}  Nf6 {[%clk 0:02:58]} 3. Bb2 {[%clk 0:03:00]}  Bf5 {[%clk 0:02:58]} 4. g3 {[%clk 0:03:00]}  e6 {[%clk 0:02:58]} 5. Bg2 {[%clk 0:03:01]}  Be7 {[%clk 0:02:57]} 6. O-O {[%clk 0:03:01]}  h6 {[%clk 0:02:57]} 7. d3 {[%clk 0:03:02]}  O-O {[%clk 0:02:57]} 8. Nbd2 {[%clk 0:03:02]}  Bh7 {[%clk 0:02:53]} 9. Re1 {[%clk 0:03:02]}  c6 {[%clk 0:02:50]} 10. e4 {[%clk 0:03:03]}  a5 {[%clk 0:02:49]} 11. a3 {[%clk 0:03:02]}  Nbd7 {[%clk 0:02:45]} 12. Qe2 {[%clk 0:03:02]}  Qb6 {[%clk 0:02:39]} 13. Ne5 {[%clk 0:02:48]}  Nxe5 {[%clk 0:02:39]} 14. Bxe5 {[%clk 0:02:49]}  Rfd8 {[%clk 0:02:30]} 15. Rad1 {[%clk 0:02:40]}  Bxa3 {[%clk 0:02:17]} 16. Bxf6 {[%clk 0:02:36]}  gxf6 {[%clk 0:02:17]} 17. Qg4+ {[%clk 0:02:36]}  Kh8 {[%clk 0:02:02]} 18. Qh4 {[%clk 0:02:29]}  Kg7 {[%clk 0:02:02]} 19. Nf1 {[%clk 0:02:02]}  dxe4 {[%clk 0:01:48]} 20. Ne3 {[%clk 0:01:27]}  Qc5 {[%clk 0:01:28]} 21. Bxe4 {[%clk 0:01:12]}  Qg5 {[%clk 0:01:23]} 22. Qh3 {[%clk 0:01:10]}  f5 {[%clk 0:01:15]} 23. Bf3 {[%clk 0:01:07]}  Bc5 {[%clk 0:01:05]} 24. Ng2 {[%clk 0:01:04]}  a4 {[%clk 0:00:59]} 25. Nf4 {[%clk 0:00:55]}  a3 {[%clk 0:00:49]} 26. Rxe6 {[%clk 0:00:44]}  a2 {[%clk 0:00:47]} 27. Ree1 {[%clk 0:00:42]}  Bd4 {[%clk 0:00:46]} 28. Ra1 {[%clk 0:00:40]}  Bxa1 {[%clk 0:00:35]} 29. Rxa1 {[%clk 0:00:40]}  Bg6 {[%clk 0:00:36]} 30. Qf1 {[%clk 0:00:36]}  Qf6 {[%clk 0:00:33]} 31. Qc1 {[%clk 0:00:32]}  Re8 {[%clk 0:00:29]} 32. c3 {[%clk 0:00:32]}  Qd6 {[%clk 0:00:25]} 33. h4 {[%clk 0:00:22]}  Qa3 {[%clk 0:00:23]} 34. Qc2 {[%clk 0:00:20]}  Re5 {[%clk 0:00:18]} 35. d4 {[%clk 0:00:18]}  Re7 {[%clk 0:00:16]} 36. Kg2 {[%clk 0:00:16]}  Qa5 {[%clk 0:00:09]} 37. Qb2 {[%clk 0:00:14]}  Ree8 {[%clk 0:00:08]} 38. c4 {[%clk 0:00:13]}  Re1 {[%clk 0:00:06]} 39. b4 {[%clk 0:00:13]}  Qxb4 {[%clk 0:00:03]} 40. Qxb4 {[%clk 0:00:10]}  Rxa1 {[%clk 0:00:04]} 41. Qc3 {[%clk 0:00:11]}  Rg1+ {[%clk 0:00:04]} 42. Kh2 {[%clk 0:00:10]}  a1=Q {[%clk 0:00:04]} 43. d5+ {[%clk 0:00:11]}  Qxc3 {[%clk 0:00:04]} 44. h5 {[%clk 0:00:11]}  Qd2 {[%clk 0:00:03]} 45. hxg6 {[%clk 0:00:12]}  Qxf2+ {[%clk 0:00:03]} 46. Bg2 {[%clk 0:00:13]}  Rxg2+ {[%clk 0:00:04]} 47. Nxg2 {[%clk 0:00:13]}  Ra2 {[%clk 0:00:03]} 48. Kh3 {[%clk 0:00:14]}  Qxg2+ {[%clk 0:00:04]} 49. Kh4 {[%clk 0:00:14]}  Qh2# {[%clk 0:00:05]} 0-1


[Site "https://www.chess.com"]

[Event "Titled Tuesday Blitz May 03 Late 2022"]
[White "Hakobyan, Aram"]
[Black "Drygalov, Sergey"]
[WhiteFideId "13306677"]
[BlackFideId "24171743"]
[WhiteElo "2557"]
[BlackElo "2514"]
[Result "1-0"]
[Round "10"]
[TimeControl "180+1"]
[Date "2022.05.03"]
[WhiteClock "0:00:45"]
[BlackClock "0:00:08"]

1. d4 {[%clk 0:03:00]}  Nf6 {[%clk 0:02:59]} 2. c4 {[%clk 0:03:01]}  e6 {[%clk 0:02:59]} 3. a3 {[%clk 0:03:02]}  d5 {[%clk 0:02:58]} 4. cxd5 {[%clk 0:03:03]}  exd5 {[%clk 0:02:58]} 5. Nc3 {[%clk 0:03:03]}  c6 {[%clk 0:02:56]} 6. Bf4 {[%clk 0:03:04]}  Bf5 {[%clk 0:02:56]} 7. e3 {[%clk 0:03:04]}  Bd6 {[%clk 0:02:55]} 8. Bxd6 {[%clk 0:03:05]}  Qxd6 {[%clk 0:02:56]} 9. Qf3 {[%clk 0:03:05]}  Bg6 {[%clk 0:02:55]} 10. h4 {[%clk 0:03:06]}  h5 {[%clk 0:02:44]} 11. Nge2 {[%clk 0:03:04]}  Nbd7 {[%clk 0:02:24]} 12. Nf4 {[%clk 0:03:04]}  O-O-O {[%clk 0:02:18]} 13. Rc1 {[%clk 0:03:02]}  Kb8 {[%clk 0:02:17]} 14. Qg3 {[%clk 0:02:56]}  Bf5 {[%clk 0:02:11]} 15. Nxh5 {[%clk 0:02:52]}  Qxg3 {[%clk 0:02:08]} 16. Nxg3 {[%clk 0:02:53]}  Be6 {[%clk 0:02:08]} 17. Be2 {[%clk 0:02:54]}  c5 {[%clk 0:01:54]} 18. Bf3 {[%clk 0:02:44]}  cxd4 {[%clk 0:01:50]} 19. exd4 {[%clk 0:02:45]}  Nb6 {[%clk 0:01:51]} 20. b3 {[%clk 0:02:34]}  Ne4 {[%clk 0:01:44]} 21. Nge2 {[%clk 0:02:21]}  g5 {[%clk 0:01:42]} 22. g3 {[%clk 0:02:18]}  f5 {[%clk 0:01:39]} 23. hxg5 {[%clk 0:02:12]}  Nxg5 {[%clk 0:01:34]} 24. Bg2 {[%clk 0:02:11]}  Ne4 {[%clk 0:01:22]} 25. Rxh8 {[%clk 0:02:08]}  Rxh8 {[%clk 0:01:22]} 26. Nf4 {[%clk 0:02:08]}  Bf7 {[%clk 0:01:22]} 27. Nce2 {[%clk 0:01:57]}  a5 {[%clk 0:01:21]} 28. a4 {[%clk 0:01:55]}  Nc8 {[%clk 0:01:14]} 29. f3 {[%clk 0:01:52]}  Nf6 {[%clk 0:01:06]} 30. Nd3 {[%clk 0:01:52]}  Be8 {[%clk 0:00:54]} 31. Nef4 {[%clk 0:01:52]}  Ne7 {[%clk 0:00:53]} 32. Ne5 {[%clk 0:01:44]}  Nc6 {[%clk 0:00:46]} 33. Nxc6+ {[%clk 0:01:40]}  bxc6 {[%clk 0:00:40]} 34. Rc5 {[%clk 0:01:34]}  Kb7 {[%clk 0:00:40]} 35. Rxa5 {[%clk 0:01:31]}  Nd7 {[%clk 0:00:35]} 36. Bh3 {[%clk 0:01:16]}  Bg6 {[%clk 0:00:27]} 37. Bf1 {[%clk 0:01:12]}  Re8+ {[%clk 0:00:25]} 38. Kd2 {[%clk 0:01:11]}  Bf7 {[%clk 0:00:24]} 39. b4 {[%clk 0:01:11]}  Rg8 {[%clk 0:00:24]} 40. b5 {[%clk 0:01:10]}  c5 {[%clk 0:00:21]} 41. Ra6 {[%clk 0:01:00]}  cxd4 {[%clk 0:00:22]} 42. a5 {[%clk 0:00:49]}  Nc5 {[%clk 0:00:22]} 43. Rf6 {[%clk 0:00:50]}  Be8 {[%clk 0:00:10]} 44. a6+ {[%clk 0:00:50]}  Ka8 {[%clk 0:00:10]} 45. b6 {[%clk 0:00:50]}  Ba4 {[%clk 0:00:10]} 46. Nxd5 {[%clk 0:00:45]}  Nb3+ {[%clk 0:00:10]} 47. Ke1 {[%clk 0:00:44]}  Re8+ {[%clk 0:00:09]} 48. Kf2 {[%clk 0:00:44]}  Nc5 {[%clk 0:00:08]} 49. Nc7+ {[%clk 0:00:45]} 1-0


[Site "https://www.chess.com"]

[Event "Titled Tuesday Blitz May 03 Late 2022"]
[White "Hambleton, Aman"]
[Black "Nagy, Gabor"]
[WhiteFideId "2606577"]
[BlackFideId "737119"]
[WhiteElo "2552"]
[BlackElo "2534"]
[Result "0-1"]
[Round "10"]
[TimeControl "180+1"]
[Date "2022.05.03"]
[WhiteClock "0:00:01"]
[BlackClock "0:01:26"]

1. d4 {[%clk 0:03:00]}  c5 {[%clk 0:02:57]} 2. d5 {[%clk 0:03:00]}  g6 {[%clk 0:02:56]} 3. c4 {[%clk 0:03:01]}  Bg7 {[%clk 0:02:56]} 4. e4 {[%clk 0:03:01]}  d6 {[%clk 0:02:57]} 5. Bd3 {[%clk 0:03:02]}  Nf6 {[%clk 0:02:57]} 6. h3 {[%clk 0:03:02]}  O-O {[%clk 0:02:57]} 7. Nf3 {[%clk 0:03:03]}  e6 {[%clk 0:02:58]} 8. Nc3 {[%clk 0:03:02]}  exd5 {[%clk 0:02:58]} 9. cxd5 {[%clk 0:03:03]}  a6 {[%clk 0:02:58]} 10. a4 {[%clk 0:03:03]}  Nbd7 {[%clk 0:02:58]} 11. O-O {[%clk 0:03:04]}  Re8 {[%clk 0:02:59]} 12. Re1 {[%clk 0:02:19]}  Qe7 {[%clk 0:02:55]} 13. Bf4 {[%clk 0:02:18]}  Nh5 {[%clk 0:02:52]} 14. Bh2 {[%clk 0:02:19]}  Qf8 {[%clk 0:02:52]} 15. Bf1 {[%clk 0:01:57]}  Rb8 {[%clk 0:02:49]} 16. Nd2 {[%clk 0:01:38]}  Be5 {[%clk 0:02:40]} 17. a5 {[%clk 0:01:23]}  Qh6 {[%clk 0:02:38]} 18. Nc4 {[%clk 0:01:12]}  Bxh2+ {[%clk 0:02:26]} 19. Kxh2 {[%clk 0:01:13]}  Qf8 {[%clk 0:02:19]} 20. Na4 {[%clk 0:01:00]}  Ne5 {[%clk 0:02:17]} 21. Nab6 {[%clk 0:00:40]}  Nxc4 {[%clk 0:02:11]} 22. Bxc4 {[%clk 0:00:40]}  Qg7 {[%clk 0:02:03]} 23. Qd2 {[%clk 0:00:31]}  Qe5+ {[%clk 0:02:01]} 24. g3 {[%clk 0:00:09]}  Nf6 {[%clk 0:02:00]} 25. Bd3 {[%clk 0:00:03]}  Qh5 {[%clk 0:01:57]} 26. Bf1 {[%clk 0:00:02]}  Nxe4 {[%clk 0:01:47]} 27. Qe2 {[%clk 0:00:03]}  Qh6 {[%clk 0:01:43]} 28. Qe3 {[%clk 0:00:02]}  Qxe3 {[%clk 0:01:41]} 29. Rxe3 {[%clk 0:00:03]}  Nf6 {[%clk 0:01:41]} 30. Rxe8+ {[%clk 0:00:03]}  Nxe8 {[%clk 0:01:42]} 31. Re1 {[%clk 0:00:03]}  Kf8 {[%clk 0:01:43]} 32. f4 {[%clk 0:00:03]}  h5 {[%clk 0:01:40]} 33. Be2 {[%clk 0:00:02]}  Nf6 {[%clk 0:01:39]} 34. Bf3 {[%clk 0:00:03]}  Bf5 {[%clk 0:01:40]} 35. Kg2 {[%clk 0:00:02]}  Re8 {[%clk 0:01:38]} 36. Rxe8+ {[%clk 0:00:03]}  Kxe8 {[%clk 0:01:39]} 37. Nc4 {[%clk 0:00:02]}  Ke7 {[%clk 0:01:39]} 38. Nb6 {[%clk 0:00:02]}  Kd8 {[%clk 0:01:38]} 39. Kh2 {[%clk 0:00:01]}  Be4 {[%clk 0:01:38]} 40. Bxe4 {[%clk 0:00:01]}  Nxe4 {[%clk 0:01:39]} 41. g4 {[%clk 0:00:01]}  hxg4 {[%clk 0:01:37]} 42. hxg4 {[%clk 0:00:02]}  Nf6 {[%clk 0:01:35]} 43. Kg3 {[%clk 0:00:02]}  Nd7 {[%clk 0:01:35]} 44. Nc4 {[%clk 0:00:02]}  Kc7 {[%clk 0:01:35]} 45. g5 {[%clk 0:00:02]}  b5 {[%clk 0:01:35]} 46. axb6+ {[%clk 0:00:02]}  Nxb6 {[%clk 0:01:35]} 47. Ne3 {[%clk 0:00:02]}  Na4 {[%clk 0:01:33]} 48. b3 {[%clk 0:00:02]}  Nc3 {[%clk 0:01:34]} 49. f5 {[%clk 0:00:02]}  Ne2+ {[%clk 0:01:29]} 50. Kf3 {[%clk 0:00:02]}  Nd4+ {[%clk 0:01:30]} 51. Ke4 {[%clk 0:00:03]}  Nxb3 {[%clk 0:01:29]} 52. fxg6 {[%clk 0:00:04]}  fxg6 {[%clk 0:01:30]} 53. Ng2 {[%clk 0:00:04]}  Nd2+ {[%clk 0:01:26]} 54. Ke3 {[%clk 0:00:04]}  Nc4+ {[%clk 0:01:26]} 55. Kd3 {[%clk 0:00:03]}  Ne5+ {[%clk 0:01:27]} 56. Ke4 {[%clk 0:00:03]}  a5 {[%clk 0:01:27]} 57. Ne3 {[%clk 0:00:01]}  a4 {[%clk 0:01:27]} 58. Nc2 {[%clk 0:00:02]}  Kb6 {[%clk 0:01:27]} 59. Ke3 {[%clk 0:00:02]}  Ka5 {[%clk 0:01:27]} 60. Kd2 {[%clk 0:00:02]}  Nf7 {[%clk 0:01:26]} 61. Kc3 {[%clk 0:00:02]}  Nxg5 {[%clk 0:01:26]} 62. Na3 {[%clk 0:00:02]}  Ne4+ {[%clk 0:01:26]} 63. Kd3 {[%clk 0:00:02]}  Nf6 {[%clk 0:01:27]} 64. Nc4+ {[%clk 0:00:02]}  Kb4 {[%clk 0:01:28]} 65. Nxd6 {[%clk 0:00:02]}  Nxd5 {[%clk 0:01:27]} 66. Ne4 {[%clk 0:00:02]}  a3 {[%clk 0:01:27]} 67. Kc2 {[%clk 0:00:03]}  c4 {[%clk 0:01:26]} 68. Ng5 {[%clk 0:00:02]}  c3 {[%clk 0:01:26]} 69. Nf3 {[%clk 0:00:02]}  a2 {[%clk 0:01:26]} 70. Ne1 {[%clk 0:00:02]}  a1=Q {[%clk 0:01:26]} 71. Nd3+ {[%clk 0:00:02]}  Kc4 {[%clk 0:01:26]} 72. Ne5+ {[%clk 0:00:02]}  Kd4 {[%clk 0:01:26]} 73. Nc6+ {[%clk 0:00:02]}  Ke3 {[%clk 0:01:26]} 74. Nd4 {[%clk 0:00:01]}  Qb2+ {[%clk 0:01:27]} 75. Kd1 {[%clk 0:00:01]}  c2+ {[%clk 0:01:28]} 76. Nxc2+ {[%clk 0:00:01]}  Ke4 {[%clk 0:01:26]} 77. Ke2 {[%clk 0:00:01]}  Qxc2+ {[%clk 0:01:26]} 78. Kf1 {[%clk 0:00:01]}  Kf3 {[%clk 0:01:26]} 0-1


[Site "https://www.chess.com"]